bitfinex/quotes_BTCUSD_20230110
["timestamp","ask_amount","ask_price","bid_price","bid_amount"]
[1673345358779,3.31985078,17246.0,17245.0,9.99587287]
[1673345369233,3.7529983,17246.0,17245.0,9.99587287]
[1673345369486,1.38241199,17246.0,17245.0,10.23355076]
[1673345369740,1.81561916,17246.0,17245.0,10.16397287]
[1673345370258,0.81620717,17246.0,17245.0,10.16397287]
[1673345371036,0.5562805,17246.0,17245.0,10.76715374]
[1673345371309,0.383,17246.0,17245.0,11.04907383]
[1673345371540,0.383,17246.0,17245.0,12.34347174]
[1673345371803,0.383,17246.0,17245.0,12.66210922]
[1673345372114,0.383,17246.0,17245.0,13.38766544]
[1673345372330,0.1734305,17248.0,17246.0,0.2]
[1673345372331,0.1732805,17248.0,17246.0,0.2]
[1673345372609,0.43418227,17249.0,17247.0,0.74631]
[1673345372868,0.43418227,17249.0,17248.0,0.1681]
[1673345373418,0.43320717,17249.0,17248.0,0.1681]
[1673345373681,0.1732805,17249.0,17248.0,0.3347]
[1673345373946,0.002,17249.0,17248.0,0.97499663]
[1673345374189,0.1732805,17249.0,17248.0,0.97499663]
[1673345374447,0.002,17249.0,17248.0,1.04199663]
[1673345377782,0.002,17249.0,17248.0,1.62177363]
[1673345378502,0.002,17249.0,17248.0,2.36805063]
[1673345381078,0.002,17249.0,17248.0,1.04039663]
[1673345399674,0.002,17249.0,17248.0,0.70729663]
[1673345406403,0.1752805,17249.0,17248.0,0.70729663]
[1673345407884,0.43520717,17249.0,17248.0,0.70729663]
[1673345408387,1.76855225,17249.0,17248.0,0.70729663]
[1673345410406,2.11624965,17249.0,17248.0,0.70729663]
[1673345410655,2.1165995,17249.0,17248.0,0.70729663]
[1673345413768,2.16930592,17249.0,17248.0,0.70729663]
[1673345415029,1.99482937,17249.0,17248.0,0.70729663]
[1673345415530,1.82184816,17249.0,17248.0,0.70729663]
[1673345415746,1.99482937,17249.0,17248.0,0.70729663]
[1673345416005,1.82184683,17249.0,17248.0,0.70729663]
[1673345416774,1.99482937,17249.0,17248.0,0.70729663]
[1673345417284,2.17265405,17249.0,17248.0,0.70729663]
[1673345418841,1.99482937,17249.0,17248.0,0.70729663]
[1673345420242,2.25500754,17249.0,17248.0,0.70729663]
[1673345420464,1.99482937,17249.0,17248.0,0.70729663]
[1673345420684,1.82190551,17249.0,17248.0,0.70729663]
[1673345421163,2.25505303,17249.0,17248.0,0.70729663]
[1673345421998,1.99482937,17249.0,17248.0,0.70729663]
[1673345422209,1.82189913,17249.0,17248.0,0.70729663]
[1673345422455,2.25504665,17249.0,17248.0,0.70729663]
[1673345422990,1.82189913,17249.0,17248.0,0.70729663]
[1673345428580,0.22820121,17249.0,17248.0,0.70722421]
[1673345431805,0.05470642,17249.0,17248.0,0.70722421]
[1673345434061,0.05470642,17249.0,17248.0,2.96390756]
[1673345434565,0.05470642,17249.0,17248.0,2.04054285]
[1673345436314,0.05470642,17249.0,17248.0,1.86677821]
[1673345439140,0.05470642,17249.0,17248.0,1.28700121]
[1673345455906,0.22802806,17249.0,17248.0,0.70722421]
[1673345464693,0.48824534,17249.0,17248.0,0.70722421]
[1673345464941,0.22802806,17249.0,17248.0,0.70722421]
[1673345467900,0.22483256,17249.0,17248.0,0.70722421]
[1673345471718,0.48504984,17249.0,17248.0,0.70722421]
[1673345471963,0.22483256,17249.0,17248.0,0.70722421]
[1673345476424,0.48504984,17249.0,17248.0,0.70722421]
[1673345477201,1.64504941,17249.0,17248.0,0.70722421]
[1673345477450,0.48504984,17249.0,17248.0,0.70722421]
[1673345478431,1.64505922,17249.0,17248.0,0.70722421]
[1673345479163,1.99196833,17249.0,17248.0,0.70722421]
[1673345479668,1.64505922,17249.0,17248.0,0.70722421]
[1673345479922,1.99196833,17249.0,17248.0,0.70722421]
[1673345480185,1.64505922,17249.0,17248.0,0.70722421]
[1673345480440,1.81847354,17249.0,17248.0,0.70722421]
[1673345480947,1.991859,17249.0,17248.0,0.70722421]
[1673345481203,1.81847354,17249.0,17248.0,0.70722421]
[1673345482237,1.99186005,17249.0,17248.0,0.70722421]
[1673345482483,1.81847354,17249.0,17248.0,0.70722421]
[1673345492608,2.25940008,17249.0,17248.0,0.70711033]
[1673345493142,1.81847354,17249.0,17248.0,0.70711033]
[1673345502977,1.99189413,17249.0,17248.0,0.70711033]
[1673345503231,1.99189421,17249.0,17248.0,0.70711033]
[1673345503472,1.81847354,17249.0,17248.0,0.70711033]
[1673345503727,1.99189401,17249.0,17248.0,0.70711033]
[1673345504221,1.64496066,17249.0,17248.0,0.70711033]
[1673345504724,0.48497552,17249.0,17248.0,0.70711033]
[1673345505254,1.8184445,17249.0,17248.0,0.70711033]
[1673345507983,1.64495162,17249.0,17248.0,0.70711033]
[1673345508235,1.64495978,17249.0,17248.0,0.70711033]
[1673345509482,1.99186889,17249.0,17248.0,0.70711033]
[1673345509725,1.64495978,17249.0,17248.0,0.70711033]
[1673345509983,1.99186889,17249.0,17248.0,0.70711033]
[1673345510238,1.99186746,17249.0,17248.0,0.70711033]
[1673345511007,1.81845266,17249.0,17248.0,0.70711033]
[1673345511269,1.64495967,17249.0,17248.0,0.70711033]
[1673345513279,1.99186878,17249.0,17248.0,0.70711033]
[1673345513576,1.81845266,17249.0,17248.0,0.70711033]
[1673345528930,1.6450064,17249.0,17248.0,0.70711033]
[1673345529416,1.81845266,17249.0,17248.0,0.70711033]
[1673345529672,1.99191788,17249.0,17248.0,0.70711033]
[1673345529908,1.64500904,17249.0,17248.0,0.70711033]
[1673345531988,1.99191815,17249.0,17248.0,0.70711033]
[1673345532238,1.81845266,17249.0,17248.0,0.70711033]
[1673345533001,1.99191899,17249.0,17248.0,0.70711033]
[1673345533257,1.81845266,17249.0,17248.0,0.70711033]
[1673345534505,1.99192409,17249.0,17248.0,0.70711033]
[1673345534765,1.99192386,17249.0,17248.0,0.70711033]
[1673345535255,1.64501475,17249.0,17248.0,0.70711033]
[1673345535965,0.48502625,17249.0,17248.0,0.70711033]
[1673345538470,0.22480897,17249.0,17248.0,0.70711033]
[1673345538975,0.22480897,17249.0,17248.0,0.88087497]
[1673345539991,0.05133777,17249.0,17248.0,0.88087497]
[1673345544989,0.05133777,17249.0,17248.0,1.46065197]
[1673345549751,0.05133777,17249.0,17248.0,1.28688733]
[1673345563614,0.05133777,17249.0,17248.0,1.46065197]
[1673345563824,0.05133777,17249.0,17248.0,1.28688733]
[1673345564345,0.05133777,17249.0,17248.0,1.46065197]
[1673345567421,0.05133777,17249.0,17248.0,1.28688733]
[1673345568177,0.05133777,17249.0,17248.0,1.46065197]
[1673345568671,0.05133777,17249.0,17248.0,1.28688733]
[1673345572975,0.22480897,17249.0,17248.0,1.28688733]
[1673345574277,0.22480897,17249.0,17248.0,0.70711033]
[1673345577982,0.48502625,17249.0,17248.0,0.70711033]
[1673345578223,0.22480897,17249.0,17248.0,0.70711033]
[1673345582663,0.23814074,17249.0,17248.0,0.70711033]
[1673345582875,0.23776158,17249.0,17248.0,0.70711033]
[1673345587211,0.49797886,17249.0,17248.0,0.70711033]
[1673345602990,2.09891893,17249.0,17248.0,0.067]
[1673345603237,3.64704859,17249.0,17248.0,0.067]
[1673345603467,3.48935931,17249.0,17248.0,0.067]
[1673345603978,4.06910231,17249.0,17248.0,0.06691943]
[1673345604216,4.06894336,17249.0,17248.0,0.06691943]
[1673345604693,3.63595479,17249.0,17248.0,0.06691943]
[1673345604931,4.06903678,17249.0,17248.0,0.06691943]
[1673345616124,4.64877978,17249.0,17248.0,0.06691943]
[1673345616372,4.21569779,17249.0,17248.0,0.06691943]
[1673345617386,4.6483229,17249.0,17248.0,0.06691943]
[1673345618684,4.21569779,17249.0,17248.0,0.06691943]
[1673345620976,4.21560766,17249.0,17248.0,0.06691943]
[1673345622241,4.64816341,17249.0,17248.0,0.06691943]
[1673345630360,4.21560766,17249.0,17248.0,0.06691943]
[1673345631650,4.73465394,17249.0,17248.0,0.05627641]
[1673345635656,5.28290363,17249.0,17248.0,0.05627641]
[1673345635902,4.76385735,17249.0,17248.0,0.05627641]
[1673345638194,5.28290363,17249.0,17248.0,0.05627641]
[1673345639186,5.45020363,17249.0,17248.0,0.05627641]
[1673345640910,5.28320363,17249.0,17248.0,0.05627641]
[1673345647192,4.43633555,17249.0,17248.0,0.05627641]
[1673345647436,5.34305828,17249.0,17248.0,0.05627641]
[1673345649397,5.04305828,17249.0,17248.0,0.05627641]
[1673345649694,6.78343112,17249.0,17248.0,0.05627641]
[1673345649951,7.08343112,17249.0,17248.0,0.05627641]
[1673345650203,7.08343018,17249.0,17248.0,0.05627641]
[1673345651726,7.08343018,17249.0,17248.0,0.04772275]
[1673345652452,5.34305828,17249.0,17248.0,0.04772275]
[1673345653705,4.73633555,17249.0,17248.0,0.04772275]
[1673345654188,5.37800607,17249.0,17248.0,0.04772275]
[1673345655939,7.11836822,17249.0,17248.0,0.04772275]
[1673345656435,7.11837097,17249.0,17248.0,0.04772275]
[1673345656687,7.11836844,17249.0,17248.0,0.04772275]
[1673345656934,5.37800607,17249.0,17248.0,0.04772275]
[1673345657428,7.11837214,17249.0,17248.0,0.04772275]
[1673345657944,5.37800607,17249.0,17248.0,0.04772275]
[1673345659178,7.11837044,17249.0,17248.0,0.04772275]
[1673345659917,5.37800607,17249.0,17248.0,0.04772275]
[1673345660396,7.11836859,17249.0,17248.0,0.04772275]
[1673345661206,5.37800607,17249.0,17248.0,0.04772275]
[1673345661939,6.47671777,17249.0,17248.0,0.04772275]
[1673345662183,7.0605426,17249.0,17248.0,0.04772275]
[1673345663995,6.7605426,17249.0,17248.0,0.04772275]
[1673345664244,5.02016038,17249.0,17248.0,0.04772275]
[1673345664497,5.53989085,17249.0,17248.0,0.04772275]
[1673345665243,5.19394214,17249.0,17248.0,0.04772275]
[1673345666254,5.54105239,17249.0,17248.0,0.04772275]
[1673345666999,5.19394214,17249.0,17248.0,0.04772275]
[1673345669247,5.54062439,17249.0,17248.0,0.04772275]
[1673345671252,5.02079067,17249.0,17248.0,0.04772275]
[1673345671997,5.02079067,17249.0,17248.0,0.04003481]
[1673345674733,4.73696584,17249.0,17248.0,0.04003481]
[1673345674990,5.38604772,17249.0,17248.0,0.04003481]
[1673345675248,7.1264064,17249.0,17248.0,0.04003481]
[1673345675958,6.47732452,17249.0,17248.0,0.04003481]
[1673345676253,7.06178866,17249.0,17248.0,0.04003481]
[1673345676507,7.35166866,17249.0,17248.0,0.04003481]
[1673345676779,7.06178866,17249.0,17248.0,0.04003481]
[1673345679035,7.22988866,17249.0,17248.0,0.04003481]
[1673345683997,7.22988866,17249.0,17248.0,0.02545488]
[1673345688508,6.64542452,17249.0,17248.0,0.02545488]
[1673345689229,6.47732452,17249.0,17248.0,0.02545488]
[1673345690459,7.06178866,17249.0,17248.0,0.02545488]
[1673345690709,6.47732452,17249.0,17248.0,0.02545488]
[1673345692205,6.47732452,17249.0,17248.0,0.0229094]
[1673345697387,7.06178866,17249.0,17248.0,0.0229094]
[1673345700646,7.6316735,17249.0,17248.0,0.0229094]
[1673345700921,6.47732452,17249.0,17248.0,0.0229094]
[1673345701719,7.06178866,17249.0,17248.0,0.0229094]
[1673345703021,7.01470998,17249.0,17248.0,0.0229094]
[1673345705257,7.64051438,17249.0,17248.0,0.0229094]
[1673345705509,6.43024584,17249.0,17248.0,0.0229094]
[1673345705792,6.9430603,17249.0,17248.0,0.0229094]
[1673345706042,6.6430603,17249.0,17248.0,0.0229094]
[1673345706291,6.9430603,17249.0,17248.0,0.0229094]
[1673345707548,6.6430603,17249.0,17248.0,0.0229094]
[1673345708323,6.9430603,17249.0,17248.0,0.0229094]
[1673345708829,6.6430603,17249.0,17248.0,0.0229094]
[1673345709554,6.9430603,17249.0,17248.0,0.0229094]
[1673345710549,7.52752444,17249.0,17248.0,0.0229094]
[1673345711046,6.9430603,17249.0,17248.0,0.0229094]
[1673345711971,7.52752444,17249.0,17248.0,0.0229094]
[1673345712222,7.52752444,17249.0,17248.0,0.02061847]
[1673345714009,6.9430603,17249.0,17248.0,0.02061847]
[1673345714265,6.6430603,17249.0,17248.0,0.02061847]
[1673345714525,7.22752444,17249.0,17248.0,0.02061847]
[1673345714749,6.6430603,17249.0,17248.0,0.02061847]
[1673345715501,5.02515478,17249.0,17248.0,0.02061847]
[1673345715751,5.07278778,17249.0,17248.0,0.02061847]
[1673345716763,4.52453809,17249.0,17248.0,0.02061847]
[1673345719491,4.35723809,17249.0,17248.0,0.02061847]
[1673345720245,3.83733745,17249.0,17248.0,0.02061847]
[1673345720981,3.47634645,17249.0,17248.0,0.02061847]
[1673345722797,3.83733745,17249.0,17248.0,0.02061847]
[1673345723806,3.47634645,17249.0,17248.0,0.02061847]
[1673345724316,3.83733745,17249.0,17248.0,0.02061847]
[1673345726305,3.32968051,17249.0,17248.0,0.02061847]
[1673345727034,3.6906664,17249.0,17248.0,0.02061847]
[1673345727495,3.3296754,17249.0,17248.0,0.02061847]
[1673345729667,3.6906664,17249.0,17248.0,0.02061847]
[1673345730135,3.25759445,17249.0,17248.0,0.02061847]
[1673345730394,3.69061386,17249.0,17248.0,0.02061847]
[1673345730659,3.7534301,17249.0,17248.0,0.02061847]
[1673345732249,3.25759445,17249.0,17248.0,0.02061847]
[1673345732522,3.69061402,17249.0,17248.0,0.02061847]
[1673345732773,3.69061654,17249.0,17248.0,0.02061847]
[1673345733321,3.69067783,17249.0,17248.0,0.02061847]
[1673345733581,3.25759445,17249.0,17248.0,0.02061847]
[1673345736504,3.25759445,17249.0,17248.0,0.02055105]
[1673345737036,3.69075387,17249.0,17248.0,0.02055105]
[1673345739321,2.55087331,17249.0,17248.0,0.02055105]
[1673345739572,1.82740998,17249.0,17248.0,0.63854537]
[1673345739827,0.49414747,17249.0,17248.0,0.63854537]
[1673345740084,0.23424055,17249.0,17248.0,0.63854537]
[1673345741894,0.06096477,17249.0,17248.0,0.63854537]
[1673345742881,0.23424055,17249.0,17248.0,0.63854537]
[1673345745411,0.06096477,17249.0,17248.0,0.63854537]
[1673345745638,0.23424055,17249.0,17248.0,0.63854537]
[1673345747598,0.06096477,17249.0,17248.0,0.63854537]
[1673345748351,0.23424055,17249.0,17248.0,0.63854537]
[1673345748860,0.06096477,17249.0,17248.0,0.63854537]
[1673345749120,0.23424055,17249.0,17248.0,0.63854537]
[1673345749358,0.06096477,17249.0,17248.0,0.63854537]
[1673345749614,0.23424055,17249.0,17248.0,0.63026537]
[1673345749867,0.43424055,17249.0,17248.0,0.63026537]
[1673345750871,0.69414747,17249.0,17248.0,0.63026537]
[1673345751127,0.43424055,17249.0,17248.0,0.63026537]
[1673345751365,0.69414747,17249.0,17248.0,0.63026537]
[1673345755331,1.85422911,17249.0,17248.0,0.63026537]
[1673345755598,0.69414747,17249.0,17248.0,0.63026537]
[1673345755865,1.85422757,17249.0,17248.0,0.63026537]
[1673345757068,0.69414747,17249.0,17248.0,0.63026537]
[1673345759081,1.85422909,17249.0,17248.0,0.63026537]
[1673345760903,2.20075385,17249.0,17248.0,0.63026537]
[1673345761146,2.46840461,17249.0,17248.0,0.01227105]
[1673345761412,2.64165711,17249.0,17248.0,0.01227105]
[1673345762371,2.20073057,17249.0,17248.0,0.01227105]
[1673345762660,2.02758319,17249.0,17248.0,0.01227105]
[1673345764410,2.46074261,17249.0,17248.0,0.01227105]
[1673345764662,2.02758319,17249.0,17248.0,0.01227105]
[1673345764914,2.46074261,17249.0,17248.0,0.01227105]
[1673345765662,2.02758319,17249.0,17248.0,0.01227105]
[1673345771611,2.20073057,17249.0,17248.0,0.01227105]
[1673345773358,2.36085257,17249.0,17248.0,0.01227105]
[1673345774090,2.20073057,17249.0,17248.0,0.01227105]
[1673345775096,2.36054908,17249.0,17248.0,0.01227105]
[1673345779282,2.01402432,17249.0,17248.0,0.01227105]
[1673345780190,2.36116575,17249.0,17248.0,0.01227105]
[1673345780439,2.01402432,17249.0,17248.0,0.01227105]
[1673345783381,2.36121206,17249.0,17248.0,0.01227105]
[1673345783845,2.01402432,17249.0,17248.0,0.01227105]
[1673345786400,2.45495086,17249.0,17248.0,0.01227105]
[1673345786890,2.01402432,17249.0,17248.0,0.01227105]
[1673345787352,2.45495086,17249.0,17248.0,0.01227105]
[1673345787899,2.01402432,17249.0,17248.0,0.01227105]
[1673345788889,2.45495086,17249.0,17248.0,0.01227105]
[1673345789766,2.01402432,17249.0,17248.0,0.01227105]
[1673345790003,2.45495086,17249.0,17248.0,0.01227105]
[1673345790444,2.01402432,17249.0,17248.0,0.01227105]
[1673345790871,2.45495086,17249.0,17248.0,0.01227105]
[1673345793171,2.45495086,17249.0,17248.0,0.01220013]
[1673345793450,2.02179144,17249.0,17248.0,0.01220013]
[1673345795649,2.45599788,17249.0,17248.0,0.01220013]
[1673345797579,2.02179144,17249.0,17248.0,0.01220013]
[1673345805867,1.5808649,17249.0,17248.0,0.01220013]
[1673345805987,2.01512062,17249.0,17248.0,0.01220013]
[1673345814820,2.45604716,17249.0,17248.0,0.01220013]
[1673345817325,2.01512062,17249.0,17248.0,0.01220013]
[1673345817831,0.83708188,17250.0,17248.0,0.01220013]
[1673345818078,0.2,17249.0,17248.0,0.01220013]
[1673345818559,0.547367,17249.0,17248.0,0.01220013]
[1673345819025,0.547367,17249.0,17247.0,0.55276499]
[1673345819265,0.547367,17249.0,17248.0,0.041]
[1673345820219,0.547367,17249.0,17247.0,0.55276499]
[1673345820487,0.550367,17249.0,17248.0,0.041]
[1673345821469,0.80789456,17249.0,17247.0,0.55276499]
[1673345821715,0.17369512,17248.0,17247.0,0.65376499]
[1673345821961,0.17369512,17248.0,17247.0,0.55276499]
[1673345822951,0.43422268,17248.0,17247.0,0.55276499]
[1673345823764,0.43422268,17248.0,17247.0,0.65376499]
[1673345824041,0.43422268,17248.0,17247.0,0.55276499]
[1673345824192,0.44122268,17248.0,17247.0,0.65376499]
[1673345824868,0.4411249,17248.0,17247.0,0.65376499]
[1673345826448,0.61489456,17248.0,17247.0,0.65376499]
[1673345827961,0.26752756,17248.0,17247.0,0.65376499]
[1673345829443,0.61489456,17248.0,17247.0,0.65376499]
[1673345838070,0.61489456,17248.0,17247.0,0.101]
[1673345838285,1.77500105,17248.0,17247.0,0.101]
[1673345838513,0.61489456,17248.0,17247.0,0.101]
[1673345840709,0.78868825,17248.0,17247.0,0.101]
[1673345841305,0.44132125,17248.0,17247.0,0.101]
[1673345841546,0.61489456,17248.0,17247.0,0.101]
[1673345843381,0.7887022,17248.0,17247.0,0.101]
[1673345843651,0.61489456,17248.0,17247.0,0.101]
[1673345845563,0.44133901,17248.0,17247.0,0.101]
[1673345846569,0.44133901,17248.0,17247.0,0.81057716]
[1673345847347,0.18081145,17248.0,17247.0,0.81057716]
[1673345847565,0.44133901,17248.0,17247.0,0.81057716]
[1673345848491,0.61489456,17248.0,17247.0,0.81057716]
[1673345852636,0.61489456,17248.0,17247.0,0.101]
[1673345854128,0.78866148,17248.0,17247.0,0.101]
[1673345854634,0.61489456,17248.0,17247.0,0.101]
[1673345855641,0.44129735,17248.0,17247.0,0.101]
[1673345858836,0.44129735,17248.0,17247.0,0.61162829]
[1673345865343,0.18076979,17248.0,17247.0,0.61162829]
[1673345868770,0.18076979,17248.0,17247.0,0.78539293]
[1673345868989,0.18076979,17248.0,17247.0,0.61162829]
[1673345875439,0.18076979,17248.0,17247.0,0.78539293]
[1673345875661,0.18076979,17248.0,17247.0,0.61162829]
[1673345880291,0.18076979,17248.0,17247.0,0.78539293]
[1673345880546,0.007,17248.0,17247.0,0.78539293]
[1673345881044,0.18076979,17248.0,17247.0,0.78539293]
[1673345881528,0.18076979,17248.0,17247.0,0.61162829]
[1673345882755,0.25415135,17248.0,17247.0,0.61162829]
[1673345888942,0.25415135,17248.0,17247.0,0.78539293]
[1673345889461,0.25415135,17248.0,17247.0,0.61162829]
[1673345889708,0.25415135,17248.0,17247.0,0.78539293]
[1673345890217,0.08038156,17248.0,17247.0,0.78539293]
[1673345890470,0.25415135,17248.0,17247.0,0.78539293]
[1673345891719,0.25415135,17248.0,17247.0,0.61162829]
[1673345891970,0.51467891,17248.0,17247.0,0.61162829]
[1673345902547,0.68827612,17248.0,17247.0,0.101]
[1673345904020,0.68827612,17248.0,17247.0,0.10092069]
[1673345904274,1.27476048,17248.0,17247.0,0.10092069]
[1673345904516,0.88827612,17248.0,17247.0,0.10092069]
[1673345908552,1.9260547,17248.0,17247.0,0.10092069]
[1673345908811,3.4471628,17248.0,17247.0,0.10092069]
[1673345909058,3.0861718,17248.0,17247.0,0.10092069]
[1673345909813,1.9260547,17248.0,17247.0,0.10092069]
[1673345910321,3.08618221,17248.0,17247.0,0.10092069]
[1673345911080,1.9260547,17248.0,17247.0,0.10092069]
[1673345917335,2.2870457,17248.0,17247.0,0.10092069]
[1673345918639,1.92597894,17248.0,17247.0,0.10092069]
[1673345923341,2.50575594,17248.0,17247.0,0.10092069]
[1673345927749,4.10015469,17248.0,17247.0,0.10092069]
[1673345928008,3.83970289,17248.0,17247.0,0.10092069]
[1673345928260,4.1001065,17248.0,17247.0,0.10092069]
[1673345928510,4.20069389,17248.0,17247.0,0.10092069]
[1673345929271,4.32077512,17248.0,17247.0,0.10092069]
[1673345930785,3.95978412,17248.0,17247.0,0.10092069]
[1673345931288,4.32077512,17248.0,17247.0,0.10092069]
[1673345932049,3.95978412,17248.0,17247.0,0.10092069]
[1673345932309,4.32077512,17248.0,17247.0,0.10092069]
[1673345932557,3.95978412,17248.0,17247.0,0.10092069]
[1673345933058,4.32077512,17248.0,17247.0,0.10092069]
[1673345933309,3.95978412,17248.0,17247.0,0.10092069]
[1673345933822,4.32077512,17248.0,17247.0,0.10092069]
[1673345935772,3.95978412,17248.0,17247.0,0.10092069]
[1673345936258,4.32066199,17248.0,17247.0,0.10084089]
[1673345936512,3.32196101,17248.0,17247.0,0.10084089]
[1673345936766,3.54976194,17248.0,17247.0,0.10084089]
[1673345937016,4.12953894,17248.0,17247.0,0.10084089]
[1673345937277,4.98523958,17248.0,17247.0,0.10084089]
[1673345937531,4.46533894,17248.0,17247.0,0.10084089]
[1673345941380,4.90054616,17248.0,17247.0,0.10084089]
[1673345942383,4.46533894,17248.0,17247.0,0.10084089]
[1673345947130,4.32317827,17248.0,17247.0,0.10084089]
[1673345947382,4.62317827,17248.0,17247.0,0.10084089]
[1673345949859,5.30130788,17248.0,17247.0,0.10084089]
[1673345950101,4.62317827,17248.0,17247.0,0.10084089]
[1673345950353,5.14927195,17248.0,17247.0,0.10084089]
[1673345953173,5.60726195,17248.0,17247.0,0.10084089]
[1673345953482,5.37536248,17248.0,17247.0,0.10084089]
[1673345953980,5.1018563,17248.0,17247.0,0.10084089]
[1673345954221,5.3756023,17248.0,17247.0,0.10084089]
[1673345954807,6.06210649,17248.0,17247.0,0.10084089]
[1673345955025,6.00411596,17248.0,17247.0,0.10084089]
[1673345955296,5.70411596,17248.0,17247.0,0.10084089]
[1673345955552,5.0158755,17248.0,17247.0,0.10084089]
[1673345957448,5.44933713,17248.0,17247.0,0.10084089]
[1673345957965,5.44934385,17248.0,17247.0,0.10084089]
[1673345958217,5.0158755,17248.0,17247.0,0.10084089]
[1673345958774,5.0158755,17248.0,17247.0,0.10073244]
[1673345973800,5.53601596,17248.0,17247.0,0.10073244]
[1673345974057,5.0158755,17248.0,17247.0,0.10073244]
[1673345974853,3.35557335,17248.0,17247.0,0.10073244]
[1673345975089,3.78944991,17248.0,17247.0,0.10073244]
[1673345975402,4.1365605,17248.0,17247.0,0.10073244]
[1673345975886,4.1366334,17248.0,17247.0,0.10073244]
[1673345976145,3.0281654,17248.0,17247.0,0.10073244]
[1673345976965,3.02356074,17248.0,17247.0,0.10073244]
[1673345977212,2.73453172,17248.0,17247.0,0.10073244]
[1673345977980,2.73453921,17248.0,17247.0,0.10073244]
[1673345978229,1.57439335,17248.0,17247.0,0.10073244]
[1673345978490,0.68788916,17248.0,17247.0,0.72903732]
[1673345978733,0.51426153,17248.0,17247.0,0.72903732]
[1673345978982,0.51426153,17248.0,17247.0,1.30884732]
[1673345979220,0.25393742,17248.0,17247.0,1.30884732]
[1673345979972,0.08038156,17248.0,17247.0,1.30884732]
[1673345980212,0.25393742,17248.0,17247.0,1.30884732]
[1673345980456,0.08038156,17248.0,17247.0,1.30884732]
[1673345980668,0.08038156,17248.0,17247.0,0.72903732]
[1673345992712,0.08038156,17248.0,17247.0,1.30884732]
[1673345994498,0.08038156,17248.0,17247.0,0.72903732]
[1673345997627,0.08038156,17248.0,17247.0,1.76243078]
[1673345998142,0.08038156,17248.0,17247.0,2.34224078]
[1673345999935,0.08038156,17248.0,17247.0,1.88865732]
[1673346000441,0.08038156,17248.0,17247.0,2.34224078]
[1673346000934,0.08038156,17248.0,17247.0,1.88865732]
[1673346003124,0.08038156,17248.0,17247.0,2.34224078]
[1673346004394,0.08038156,17248.0,17247.0,1.88865732]
[1673346009445,0.08038156,17248.0,17247.0,2.34224078]
[1673346009939,0.00015,17250.0,17248.0,0.90987011]
[1673346010196,0.00015,17250.0,17248.0,1.59960118]
[1673346010439,0.00015,17250.0,17248.0,1.36192329]
[1673346010685,8.257e-05,17250.0,17248.0,0.90987011]
[1673346010931,8.257e-05,17250.0,17248.0,1.48964511]
[1673346011180,1.29577424,17251.0,17248.0,1.48964511]
[1673346011437,1.29577424,17251.0,17249.0,0.67983233]
[1673346011682,0.465,17251.0,17249.0,0.67983233]
[1673346011943,0.63855586,17251.0,17249.0,0.67983233]
[1673346012189,0.465,17251.0,17249.0,0.67983233]
[1673346012951,0.63855586,17251.0,17249.0,0.67983233]
[1673346013197,0.67455586,17251.0,17249.0,0.68183233]
[1673346014216,0.63855586,17251.0,17249.0,0.67983233]
[1673346014462,0.63855586,17251.0,17249.0,0.69783233]
[1673346014713,0.63855586,17251.0,17249.0,0.67983233]
[1673346014958,0.67455586,17251.0,17249.0,0.68183233]
[1673346015228,0.93487997,17251.0,17249.0,0.68183233]
[1673346015453,1.28206346,17251.0,17249.0,0.68183233]
[1673346015748,0.93487997,17251.0,17249.0,0.68183233]
[1673346015957,0.89887997,17251.0,17249.0,0.67983233]
[1673346016480,0.17355586,17250.0,17249.0,0.67983233]
[1673346017004,1.26331333,17251.0,17249.0,0.67983233]
[1673346017260,0.17355586,17250.0,17249.0,0.69783233]
[1673346017795,0.17355586,17250.0,17249.0,0.67983233]
[1673346018036,0.17355586,17250.0,17249.0,0.69783233]
[1673346018558,0.37355586,17250.0,17249.0,0.69783233]
[1673346018813,0.2,17250.0,17249.0,0.69783233]
[1673346019318,2.15421347,17251.0,17249.0,0.69783233]
[1673346019613,1.4425966,17251.0,17249.0,0.69783233]
[1673346020344,1.4425966,17251.0,17249.0,0.67983233]
[1673346020592,1.4785966,17251.0,17249.0,0.68183233]
[1673346030890,1.21827249,17251.0,17249.0,0.68183233]
[1673346031601,1.4785966,17251.0,17249.0,0.68183233]
[1673346032335,1.21827249,17251.0,17249.0,0.68183233]
[1673346033065,1.4785966,17251.0,17249.0,0.68183233]
[1673346037255,1.4785966,17251.0,17249.0,0.85559697]
[1673346037511,1.4785966,17251.0,17249.0,1.43532997]
[1673346037762,1.4785966,17251.0,17249.0,1.26156533]
[1673346038305,1.4785966,17251.0,17249.0,1.43532997]
[1673346039090,1.4785966,17251.0,17249.0,1.26156533]
[1673346040997,0.06773781,17250.0,17249.0,1.26156533]
[1673346042480,0.06773781,17250.0,17249.0,1.25956533]
[1673346042719,0.10373781,17250.0,17249.0,1.26156533]
[1673346042844,0.10373781,17250.0,17249.0,1.84130833]
[1673346043095,0.10373781,17250.0,17249.0,2.01507297]
[1673346043560,0.10373781,17250.0,17249.0,3.63010807]
[1673346043795,0.10373781,17250.0,17249.0,3.17805489]
[1673346044283,0.10373781,17250.0,17249.0,3.19605489]
[1673346045019,0.10373781,17250.0,17249.0,3.19704688]
[1673346045259,0.06773781,17250.0,17249.0,2.44181992]
[1673346045707,0.06773781,17250.0,17249.0,2.19917297]
[1673346046499,0.06773781,17250.0,17249.0,2.45981992]
[1673346046736,0.06773781,17250.0,17249.0,3.19336658]
[1673346046975,0.06773781,17250.0,17249.0,2.45981992]
[1673346047231,0.06773781,17250.0,17249.0,3.1934432]
[1673346048591,0.06773781,17250.0,17249.0,2.19917297]
[1673346050565,0.06773781,17250.0,17249.0,2.02540833]
[1673346052112,0.06773781,17250.0,17249.0,2.19917297]
[1673346052356,0.06773781,17250.0,17249.0,2.02540833]
[1673346053855,0.06773781,17250.0,17249.0,2.19917297]
[1673346054360,0.06773781,17250.0,17249.0,2.02540833]
[1673346054860,0.06773781,17250.0,17249.0,2.19917297]
[1673346055118,0.06773781,17250.0,17249.0,2.02540833]
[1673346057391,0.06773781,17250.0,17249.0,2.19917297]
[1673346059118,0.06773781,17250.0,17249.0,2.03107297]
[1673346061864,0.06773781,17250.0,17249.0,2.02880897]
[1673346064100,0.06773781,17250.0,17249.0,1.85504433]
[1673346064101,0.24129367,17250.0,17249.0,1.85504433]
[1673346064812,0.24129367,17250.0,17249.0,2.02880897]
[1673346068303,0.43761988,17252.0,17250.0,0.37355585]
[1673346068555,0.43761988,17252.0,17251.0,0.579676]
[1673346068799,0.17729577,17252.0,17251.0,0.579676]
[1673346069062,0.17634078,17252.0,17251.0,0.579676]
[1673346069289,0.71325851,17252.0,17251.0,0.579676]
[1673346069541,0.71325851,17252.0,17251.0,0.581676]
[1673346069542,0.73125851,17252.0,17251.0,0.581676]
[1673346070790,0.19434078,17252.0,17251.0,0.581676]
[1673346071308,0.02078492,17252.0,17251.0,0.581676]
[1673346076275,0.02078492,17252.0,17251.0,0.002]
[1673346077291,0.02078492,17252.0,17251.0,0.581676]